fUSD/lending_fUSD_20240712
["ID","MTS","AMOUNT","RATE_DAILY","PERIOD"]
[331825834,1720773081001,-500.0,0.00014082,2]
[331825835,1720773081011,-927.94,0.00014082,2]
[331825836,1720773081020,-500.0,0.00014082,2]
[331825837,1720773081029,-500.0,0.00014082,2]
[331825838,1720773081038,-500.0,0.00014082,2]
[331825839,1720773081048,-501.8,0.00014082,2]
[331825840,1720773081057,-500.0,0.00014082,2]
[331825841,1720773081067,-436.95,0.00014082,2]
[331825842,1720773081077,-645.8,0.00014082,2]
[331825843,1720773081087,-500.0,0.00014082,2]
[331825844,1720773081096,-500.0,0.00014082,2]
[331825845,1720773081105,-500.0,0.00014082,2]
[331825846,1720773081115,-500.0,0.00014082,2]
[331825847,1720773081125,-500.0,0.00014082,2]
[331825848,1720773081135,-500.0,0.00014082,2]
[331825849,1720773081144,-500.0,0.00014082,2]
[331825850,1720773081155,-771.86,0.00014082,2]
[331825851,1720773081164,-500.0,0.00014082,2]
[331825852,1720773081174,-500.0,0.00014082,2]
[331825853,1720773081184,-500.0,0.00014082,2]
[331825854,1720773081194,-500.0,0.00014082,2]
[331825855,1720773081203,-500.0,0.00014082,2]
[331825856,1720773081213,-500.0,0.00014082,2]
[331825857,1720773081223,-500.0,0.00014082,2]
[331825858,1720773081232,-503.57,0.00014082,2]
[331825859,1720773081241,-500.0,0.00014082,2]
[331825860,1720773081250,-500.0,0.00014082,2]
[331825861,1720773081260,-500.0,0.00014082,2]
[331825862,1720773081270,-500.0,0.00014082,2]
[331825863,1720773081280,-2780.1,0.00014082,2]
[331825864,1720773081289,-657.51,0.00014082,2]
[331825865,1720773081298,-500.0,0.00014082,2]
[331825866,1720773081307,-500.0,0.00014082,2]
[331825867,1720773081317,-500.0,0.00014082,2]
[331825868,1720773081330,-500.0,0.00014082,2]
[331825869,1720773081340,-732.46,0.00014082,2]
[331825870,1720773081350,-500.0,0.00014082,2]
[331825871,1720773081359,-500.0,0.00014082,2]
[331825872,1720773081370,-500.0,0.00014082,2]
[331825873,1720773081381,-500.0,0.00014082,2]
[331825874,1720773081390,-394.44,0.00014082,2]
[331825875,1720773081401,-500.0,0.00014082,2]
[331825876,1720773081411,-500.0,0.00014082,2]
[331825877,1720773081421,-508.06,0.00014082,2]
[331825878,1720773081431,-258.2,0.00014082,2]
[331825879,1720773081441,-191.36,0.00014082,2]
[331825880,1720773081450,-500.0,0.00014082,2]
[331825881,1720773081460,-676.56,0.00014082,2]
[331825882,1720773081470,-500.0,0.00014082,2]
[331825883,1720773081480,-500.0,0.00014082,2]
[331825884,1720773081489,-500.0,0.00014082,2]
[331825885,1720773081499,-500.0,0.00014082,2]
[331825886,1720773081508,-500.0,0.00014082,2]
[331825887,1720773081518,-500.0,0.00014082,2]
[331825888,1720773081527,-500.0,0.00014082,2]
[331825889,1720773081536,-500.0,0.00014082,2]
[331825890,1720773081546,-500.0,0.00014082,2]
[331825891,1720773081555,-509.76,0.00014082,2]
[331825892,1720773081564,-595.08707252,0.00014082,2]
[331825893,1720773081574,-500.0,0.00014082,2]
[331825894,1720773081583,-500.0,0.00014082,2]
[331825895,1720773081594,-835.01,0.00014082,2]
[331825896,1720773081603,-500.0,0.00014082,2]
[331825897,1720773081613,-500.0,0.00014082,2]
[331825898,1720773081623,-500.0,0.00014082,2]
[331825899,1720773081633,-652.34,0.00014082,2]
[331825900,1720773081643,-500.0,0.00014082,2]
[331825901,1720773081653,-500.0,0.00014082,2]
[331825902,1720773081662,-1422.62,0.00014082,2]
[331825903,1720773081672,-500.0,0.00014082,2]
[331825904,1720773081682,-500.0,0.00014082,2]
[331825905,1720773081692,-500.0,0.00014082,2]
[331825906,1720773081702,-500.0,0.00014082,2]
[331825907,1720773081846,-614.56,0.00014082,2]
[331825908,1720773081857,-500.0,0.00014082,2]
[331825909,1720773081867,-867.78,0.00014082,2]
[331825910,1720773081876,-500.0,0.00014082,2]
[331825911,1720773081886,-500.0,0.00014082,2]
[331825912,1720773081896,-296.46,0.00014082,2]
[331825913,1720773081905,-634.54,0.00014082,2]
[331825914,1720773081915,-678.11,0.00014082,2]
[331825915,1720773081925,-500.0,0.00014082,2]
[331825916,1720773081934,-252.66,0.00014082,2]
[331825917,1720773081944,-672.48,0.00014082,2]
[331825918,1720773081954,-500.0,0.00014082,2]
[331825919,1720773081964,-617.39,0.00014082,2]
[331825920,1720773081974,-500.0,0.00014082,2]
[331825921,1720773081984,-500.0,0.00014082,2]
[331825922,1720773081993,-500.0,0.00014082,2]
[331825923,1720773082003,-1272.49,0.00014082,2]
[331825924,1720773082012,-767.09,0.00014082,2]
[331825925,1720773082022,-500.0,0.00014082,2]
[331825926,1720773082031,-2493.15,0.00014082,2]
[331825927,1720773082042,-500.0,0.00014082,2]
[331825928,1720773082052,-500.0,0.00014082,2]
[331825929,1720773082062,-500.0,0.00014082,2]
[331825930,1720773082072,-873.41,0.00014082,2]
[331825931,1720773082082,-500.0,0.00014082,2]
[331825932,1720773082092,-773.22,0.00014082,2]
[331825933,1720773082102,-500.0,0.00014082,2]
[331825934,1720773082111,-500.0,0.00014082,2]
[331825935,1720773082120,-500.0,0.00014082,2]
[331825936,1720773082131,-500.0,0.00014082,2]
[331825937,1720773082140,-665.3,0.00014082,2]
[331825938,1720773082150,-500.0,0.00014082,2]
[331825939,1720773082160,-665.24,0.00014082,2]
[331825940,1720773082170,-500.0,0.00014082,2]
[331825941,1720773082180,-500.0,0.00014082,2]
[331825942,1720773082189,-516.63,0.00014082,2]
[331825943,1720773082200,-500.0,0.00014082,2]
[331825944,1720773082210,-500.0,0.00014082,2]
[331825945,1720773082219,-150.3,0.00014082,2]
[331825946,1720773082229,-500.0,0.00014082,2]
[331825947,1720773082238,-500.0,0.00014082,2]
[331825948,1720773082249,-500.0,0.00014082,2]
[331825949,1720773082259,-500.0,0.00014082,2]
[331825950,1720773082269,-976.52,0.00014082,2]
[331825951,1720773082279,-500.0,0.00014082,2]
[331825952,1720773082289,-500.0,0.00014082,2]
[331825953,1720773082298,-645.23,0.00014082,2]
[331825954,1720773082308,-234.85,0.00014082,2]
[331825955,1720773082321,-500.0,0.00014082,2]
[331825956,1720773082331,-414.4,0.00014082,2]
[331825957,1720773082340,-316.27,0.00014082,2]
[331825958,1720773082350,-151.0,0.00014093,2]
[331825959,1720773082361,-151.0,0.00014093,2]
[331825960,1720773082372,-166.995,0.00014093,2]
[331825961,1720773082381,-150.439,0.00014093,2]
[331825962,1720773082391,-809.0,0.00014093,2]
[331825963,1720773082402,-450.077,0.00014093,2]
[331825964,1720773082411,-1304.0,0.00014093,2]
[331825965,1720773082421,-2376.0,0.00014093,2]
[331825966,1720773082430,-549.0,0.00014093,2]
[331825967,1720773082440,-1964.0,0.00014093,2]
[331825968,1720773082449,-3249.0,0.00014093,2]
[331825969,1720773082459,-1072.0,0.00014093,2]
[331825970,1720773082469,-5818.0,0.00014093,2]
[331825971,1720773082479,-467.741,0.00014093,2]
[331825972,1720773082489,-4343.934,0.00014093,2]
[331825973,1720773082499,-201.191,0.00014093,2]
[331825974,1720773082508,-1107.723,0.00014093,2]
[331825975,1720773082518,-1846.945,0.00014093,2]
[331825976,1720773082528,-638.804,0.00014093,2]
[331825977,1720773082538,-13310.97310957,0.00014093,2]
[331825978,1720773082558,-390.38989043,0.00014093,2]
[331825979,1720773082567,-147.16044687,0.00014099,2]
[331825980,1720773082578,-12.09355313,0.00014099,2]
[331825981,1720773082588,-462.35092215,0.00014099,2]
[331825982,1720773082598,-227.32181018,0.00014099,2]
[331825983,1720773082607,-1000.0,0.00014133,2]
[331825984,1720773082617,-503.06,0.00014136,2]
[331825985,1720773082626,-362.18,0.00014136,2]
[331825986,1720773082636,-655.72,0.00014136,2]
[331825987,1720773082645,-500.0,0.00014136,2]
[331825988,1720773082655,-463.72,0.00014136,2]
[331825989,1720773082665,-431.93011313,0.00014136,2]
[331825990,1720773082675,-395.2539794,0.00014136,2]
[331825991,1720773082685,-506.78,0.00014136,2]
[331825992,1720773082694,-500.0,0.00014136,2]
[331825993,1720773082704,-500.0,0.00014136,2]
[331825994,1720773082714,-500.0,0.00014136,2]
[331825995,1720773082724,-500.0,0.00014136,2]
[331825996,1720773082733,-541.91,0.00014136,2]
[331825997,1720773082743,-500.0,0.00014136,2]
[331825998,1720773082753,-500.0,0.00014136,2]
[331825999,1720773082762,-500.0,0.00014136,2]
[331826000,1720773082772,-500.0,0.00014136,2]
[331826001,1720773082781,-589.99,0.00014136,2]
[331826002,1720773082791,-500.0,0.00014136,2]
[331826003,1720773082801,-405.02,0.00014136,2]
[331826004,1720773082810,-500.0,0.00014136,2]
[331826005,1720773082820,-500.0,0.00014136,2]
[331826006,1720773082830,-500.0,0.00014136,2]
[331826007,1720773082839,-186.33534835,0.00014136,2]
[331826008,1720773082851,-48.13833293,0.00014136,2]
[331826009,1720773082861,-509.03,0.00014136,2]
[331826010,1720773082870,-500.0,0.00014136,2]
[331826011,1720773082879,-500.0,0.00014136,2]
[331826012,1720773082889,-500.0,0.00014136,2]
[331826013,1720773082899,-500.0,0.00014136,2]
[331826014,1720773082909,-500.0,0.00014136,2]
[331826015,1720773082919,-616.26,0.00014136,2]
[331826016,1720773082928,-321.41757393,0.00014136,2]
[331826017,1720773082938,-500.0,0.00014136,2]
[331826018,1720773082947,-500.0,0.00014136,2]
[331826019,1720773082956,-500.0,0.00014136,2]
[331826020,1720773082966,-500.0,0.00014136,2]
[331826021,1720773082975,-500.0,0.00014136,2]
[331826022,1720773082985,-500.0,0.00014136,2]
[331826023,1720773082995,-500.0,0.00014136,2]
[331826024,1720773083004,-500.0,0.00014136,2]
[331826025,1720773083013,-500.0,0.00014136,2]
[331826026,1720773083023,-500.0,0.00014136,2]
[331826027,1720773083032,-500.0,0.00014136,2]
[331826028,1720773083042,-500.0,0.00014136,2]
[331826029,1720773083051,-500.0,0.00014136,2]
[331826030,1720773083060,-585.15580928,0.00014136,2]
[331826031,1720773083070,-216.65,0.00014136,2]
[331826032,1720773083079,-181.61694839,0.00014136,2]
[331826033,1720773083092,-318.38305161,0.00014136,2]
[331826034,1720773083101,-163.92,0.00014136,2]
[331826035,1720773083110,-500.0,0.00014136,2]
[331826036,1720773083119,-500.0,0.00014136,2]
[331826037,1720773083129,-500.0,0.00014136,2]
[331826038,1720773083141,-500.0,0.00014136,2]
[331826039,1720773083150,-500.0,0.00014136,2]
[331826040,1720773083160,-500.0,0.00014136,2]
[331826041,1720773083170,-500.0,0.00014136,2]
[331826042,1720773083179,-500.0,0.00014136,2]
[331826043,1720773083188,-500.0,0.00014136,2]
[331826044,1720773083197,-500.0,0.00014136,2]
[331826045,1720773083207,-500.0,0.00014136,2]
[331826046,1720773083217,-535.71,0.00014136,2]
[331826047,1720773083226,-500.0,0.00014136,2]
[331826048,1720773083235,-500.0,0.00014136,2]
[331826049,1720773083244,-500.0,0.00014136,2]
[331826050,1720773083254,-642.92,0.00014136,2]
[331826051,1720773083263,-500.0,0.00014136,2]
[331826052,1720773083272,-256.14671919,0.00014136,2]
[331826053,1720773083285,-405.86328081,0.00014136,2]
[331826054,1720773083294,-565.48,0.00014136,2]
[331826055,1720773083303,-500.0,0.00014136,2]
[331826056,1720773083312,-151.0,0.00014136,2]
[331826057,1720773083324,-500.0,0.00014136,2]
[331826058,1720773083334,-192.2,0.00014136,2]
[331826059,1720773083343,-500.0,0.00014136,2]
[331826060,1720773083352,-500.0,0.00014136,2]
[331826061,1720773083362,-221.39,0.00014136,2]
[331826062,1720773083371,-500.0,0.00014136,2]
[331826063,1720773083382,-500.0,0.00014136,2]
[331826064,1720773083392,-500.0,0.00014136,2]
[331826065,1720773083403,-500.0,0.00014136,2]
[331826066,1720773083413,-500.0,0.00014136,2]
[331826067,1720773083423,-500.0,0.00014136,2]
[331826068,1720773083433,-500.0,0.00014136,2]
[331826069,1720773083442,-500.0,0.00014136,2]
[331826070,1720773083451,-500.0,0.00014136,2]
[331826071,1720773083461,-500.0,0.00014136,2]
[331826072,1720773083470,-500.0,0.00014136,2]
[331826073,1720773083480,-500.0,0.00014136,2]
[331826074,1720773083489,-565.56,0.00014136,2]
[331826075,1720773083498,-500.0,0.00014136,2]
[331826076,1720773083508,-500.0,0.00014136,2]
[331826077,1720773083517,-500.0,0.00014136,2]
[331826078,1720773083526,-500.0,0.00014136,2]
[331826079,1720773083536,-500.0,0.00014136,2]
[331826080,1720773083545,-500.0,0.00014136,2]
[331826081,1720773083554,-513.8,0.00014136,2]
[331826082,1720773083564,-500.0,0.00014136,2]
[331826083,1720773083574,-500.0,0.00014136,2]
[331826084,1720773083583,-500.0,0.00014136,2]
[331826085,1720773083593,-184.28,0.00014136,2]
[331826086,1720773083602,-242.28,0.00014136,2]
[331826087,1720773083614,-500.0,0.00014136,2]
[331826088,1720773083623,-500.0,0.00014136,2]
[331826089,1720773083639,-500.0,0.00014136,2]
[331826090,1720773083648,-927.94,0.00014136,2]
[331826091,1720773083658,-500.0,0.00014136,2]
[331826092,1720773083671,-500.0,0.00014136,2]
[331826093,1720773083681,-500.0,0.00014136,2]
[331826094,1720773083690,-500.0,0.00014136,2]
[331826095,1720773083700,-500.0,0.00014136,2]
[331826096,1720773083710,-645.8,0.00014136,2]
[331826097,1720773083719,-500.0,0.00014136,2]
[331826098,1720773083729,-500.0,0.00014136,2]
[331826099,1720773083738,-500.0,0.00014136,2]
[331826100,1720773083748,-500.0,0.00014136,2]
[331826101,1720773083758,-500.0,0.00014136,2]
[331826102,1720773083768,-620.74,0.00014136,2]
[331826103,1720773083778,-500.0,0.00014136,2]
[331826104,1720773083787,-500.0,0.00014136,2]
[331826105,1720773083797,-607.8,0.00014136,2]
[331826106,1720773083807,-500.0,0.00014136,2]
[331826107,1720773083817,-500.0,0.00014136,2]
[331826108,1720773083827,-771.86,0.00014136,2]
[331826109,1720773083837,-500.0,0.00014136,2]
[331826110,1720773083847,-500.0,0.00014136,2]
[331826111,1720773083856,-500.0,0.00014136,2]
[331826112,1720773083867,-500.0,0.00014136,2]
[331826113,1720773083876,-500.0,0.00014136,2]
[331826114,1720773083889,-500.0,0.00014136,2]
[331826115,1720773083900,-500.0,0.00014136,2]
[331826116,1720773083909,-500.0,0.00014136,2]
[331826117,1720773083919,-500.0,0.00014136,2]
[331826118,1720773083929,-638.35,0.00014136,2]
[331826119,1720773083940,-500.0,0.00014136,2]
[331826120,1720773083951,-503.57,0.00014136,2]
[331826121,1720773083961,-500.0,0.00014136,2]
[331826122,1720773083972,-500.0,0.00014136,2]
[331826123,1720773083983,-500.0,0.00014136,2]
[331826124,1720773083993,-500.0,0.00014136,2]
[331826125,1720773084003,-500.0,0.00014136,2]
[331826126,1720773084012,-2780.1,0.00014136,2]
[331826127,1720773084022,-657.51,0.00014136,2]
[331826128,1720773084031,-500.0,0.00014136,2]
[331826129,1720773084042,-500.0,0.00014136,2]
[331826130,1720773084054,-500.0,0.00014136,2]
[331826131,1720773084063,-500.0,0.00014136,2]
[331826132,1720773084074,-732.46,0.00014136,2]
[331826133,1720773084084,-500.0,0.00014136,2]
[331826134,1720773084094,-500.0,0.00014136,2]
[331826135,1720773084103,-500.0,0.00014136,2]
[331826136,1720773084112,-500.0,0.00014136,2]
[331826137,1720773084121,-436.28,0.00014136,2]
[331826138,1720773084133,-500.0,0.00014136,2]
[331826139,1720773084142,-508.06,0.00014136,2]
[331826140,1720773084151,-500.0,0.00014136,2]
[331826141,1720773084161,-500.0,0.00014136,2]
[331826142,1720773084170,-676.56,0.00014136,2]
[331826143,1720773084180,-500.0,0.00014136,2]
[331826144,1720773084190,-500.0,0.00014136,2]
[331826145,1720773084201,-500.0,0.00014136,2]
[331826146,1720773084211,-464.92848352,0.00014136,2]
[331826147,1720773084221,-500.0,0.00014136,2]
[331826148,1720773084230,-837.8,0.00014136,2]
[331826149,1720773084239,-500.0,0.00014136,2]
[331826150,1720773084249,-500.0,0.00014136,2]
[331826151,1720773084259,-500.0,0.00014136,2]
[331826152,1720773084269,-500.0,0.00014136,2]
[331826153,1720773084279,-500.0,0.00014136,2]
[331826154,1720773084288,-500.0,0.00014136,2]
[331826155,1720773084298,-196.45,0.00014136,2]
[331826156,1720773084309,-500.0,0.00014136,2]
[331826157,1720773084321,-835.01,0.00014136,2]
[331826158,1720773084333,-500.0,0.00014136,2]
[331826159,1720773084344,-500.0,0.00014136,2]
[331826160,1720773084355,-500.0,0.00014136,2]
[331826161,1720773084367,-500.0,0.00014136,2]
[331826162,1720773084377,-652.34,0.00014136,2]
[331826163,1720773084391,-500.0,0.00014136,2]
[331826164,1720773084403,-500.0,0.00014136,2]
[331826165,1720773084412,-1422.62,0.00014136,2]
[331826166,1720773084540,-500.0,0.00014136,2]
[331826167,1720773084553,-500.0,0.00014136,2]
[331826168,1720773084563,-500.0,0.00014136,2]
[331826169,1720773084573,-500.0,0.00014136,2]
[331826170,1720773084582,-500.0,0.00014136,2]
[331826171,1720773084591,-574.39,0.00014136,2]
[331826172,1720773084600,-614.56,0.00014136,2]
[331826173,1720773084609,-500.0,0.00014136,2]
[331826174,1720773084618,-867.78,0.00014136,2]
[331826175,1720773084628,-500.0,0.00014136,2]
[331826176,1720773084638,-500.0,0.00014136,2]
[331826178,1720773084647,-500.0,0.00014136,2]
[331826179,1720773084657,-500.0,0.00014136,2]
[331826180,1720773084667,-634.54,0.00014136,2]
[331826181,1720773084676,-678.11,0.00014136,2]
[331826182,1720773084686,-500.0,0.00014136,2]
[331826183,1720773084694,-672.48,0.00014136,2]
[331826184,1720773084703,-242.48,0.00014136,2]
[331826185,1720773084713,-617.39,0.00014136,2]
[331826186,1720773084722,-500.0,0.00014136,2]
[331826187,1720773084731,-500.0,0.00014136,2]
[331826188,1720773084740,-500.0,0.00014136,2]
[331826189,1720773084750,-500.0,0.00014136,2]
[331826190,1720773084759,-1272.49,0.00014136,2]
[331826191,1720773084769,-767.09,0.00014136,2]
[331826192,1720773084779,-500.0,0.00014136,2]
[331826193,1720773084788,-500.0,0.00014136,2]
[331826194,1720773084797,-2493.15,0.00014136,2]
[331826195,1720773084806,-500.0,0.00014136,2]
[331826196,1720773084816,-500.0,0.00014136,2]
[331826197,1720773084825,-475.24,0.00014136,2]
[331826198,1720773084834,-873.41,0.00014136,2]
[331826199,1720773084844,-500.0,0.00014136,2]
[331826200,1720773084853,-773.22,0.00014136,2]
[331826201,1720773084863,-500.0,0.00014136,2]
[331826202,1720773084872,-500.0,0.00014136,2]
[331826203,1720773084881,-500.0,0.00014136,2]
[331826204,1720773084890,-500.0,0.00014136,2]
[331826205,1720773084900,-665.3,0.00014136,2]
[331826206,1720773084909,-500.0,0.00014136,2]
[331826207,1720773084919,-500.0,0.00014136,2]
[331826208,1720773084928,-665.24,0.00014136,2]
[331826209,1720773084938,-500.0,0.00014136,2]
[331826210,1720773084948,-500.0,0.00014136,2]
[331826211,1720773084958,-516.63,0.00014136,2]
[331826212,1720773084969,-500.0,0.00014136,2]
[331826213,1720773084979,-500.0,0.00014136,2]
[331826214,1720773084991,-601.76,0.00014136,2]
[331826215,1720773085004,-500.0,0.00014136,2]
[331826216,1720773085015,-500.0,0.00014136,2]
[331826217,1720773085026,-500.0,0.00014136,2]
[331826218,1720773085037,-248.02,0.00014136,2]
[331826219,1720773085046,-500.0,0.00014136,2]
[331826220,1720773085055,-976.52,0.00014136,2]
[331826221,1720773085065,-373.96,0.00014136,2]
[331826222,1720773085074,-500.0,0.00014136,2]
[331826223,1720773085083,-645.23,0.00014136,2]
[331826224,1720773085092,-272.55,0.00014136,2]
[331826225,1720773085101,-500.0,0.00014136,2]
[331826226,1720773085111,-500.0,0.00014136,2]
[331826227,1720773085119,-500.0,0.00014136,2]
[331826228,1720773085128,-500.0,0.00014136,2]
[331826229,1720773085139,-1200.0,0.00014145,2]
[331826230,1720773085147,-150.0,0.00014145,2]
[331826231,1720773085156,-500.0,0.0001419,2]
[331826232,1720773085166,-500.0,0.0001419,2]
[331826233,1720773085175,-500.0,0.0001419,2]
[331826234,1720773085184,-500.0,0.0001419,2]
[331826235,1720773085193,-500.0,0.0001419,2]
[331826236,1720773085202,-500.0,0.0001419,2]
[331826237,1720773085211,-500.0,0.0001419,2]
[331826238,1720773085221,-500.0,0.0001419,2]
[331826239,1720773085230,-500.0,0.0001419,2]
[331826240,1720773085239,-500.0,0.0001419,2]
[331826241,1720773085248,-206.9,0.0001419,2]
[331826242,1720773085257,-298.36,0.0001419,2]
[331826243,1720773085266,-500.0,0.0001419,2]
[331826244,1720773085275,-500.0,0.0001419,2]
[331826245,1720773085285,-189.68,0.0001419,2]
[331826246,1720773085294,-497.9,0.0001419,2]
[331826247,1720773085304,-625.64,0.0001419,2]
[331826248,1720773085313,-500.0,0.0001419,2]
[331826249,1720773085325,-500.0,0.0001419,2]
[331826250,1720773085335,-500.0,0.0001419,2]
[331826251,1720773085344,-500.0,0.0001419,2]
[331826252,1720773085353,-500.0,0.0001419,2]
[331826253,1720773085364,-151.0,0.0001419,2]
[331826254,1720773085373,-500.0,0.0001419,2]
[331826255,1720773085383,-151.0,0.0001419,2]
[331826256,1720773085393,-151.0,0.0001419,2]
[331826257,1720773085402,-578.61,0.0001419,2]
[331826258,1720773085413,-500.0,0.0001419,2]
[331826259,1720773085422,-500.0,0.0001419,2]
[331826260,1720773085431,-500.0,0.0001419,2]
[331826261,1720773085440,-266.59,0.0001419,2]
[331826262,1720773085449,-500.0,0.0001419,2]
[331826263,1720773085458,-837.8,0.0001419,2]
[331826264,1720773085467,-500.0,0.0001419,2]
[331826265,1720773085476,-500.0,0.0001419,2]
[331826266,1720773085487,-500.0,0.0001419,2]
[331826267,1720773085496,-244.78,0.0001419,2]
[331826268,1720773085505,-500.0,0.0001419,2]
[331826269,1720773085516,-420.9,0.0001419,2]
[331826270,1720773085525,-500.0,0.0001419,2]
[331826271,1720773085535,-500.0,0.0001419,2]
[331826272,1720773085543,-500.0,0.0001419,2]
[331826273,1720773085553,-500.0,0.0001419,2]
[331826274,1720773085561,-298.0,0.0001419,2]
[331826275,1720773085570,-500.0,0.0001419,2]
[331826276,1720773085579,-300.0,0.0001419,2]
[331826277,1720773085588,-300.0,0.0001419,2]
[331826278,1720773085597,-503.06,0.00014191,2]
[331826279,1720773085606,-655.72,0.00014191,2]
[331826280,1720773085615,-604.99,0.00014191,2]
[331826281,1720773085625,-388.69,0.00014191,2]
[331826282,1720773085635,-500.0,0.00014191,2]
[331826283,1720773085644,-500.0,0.00014191,2]
[331826284,1720773085653,-500.0,0.00014191,2]
[331826285,1720773085663,-500.0,0.00014191,2]
[331826286,1720773085672,-500.0,0.00014191,2]
[331826287,1720773085680,-589.99,0.00014191,2]
[331826288,1720773085689,-500.0,0.00014191,2]
[331826289,1720773085698,-500.0,0.00014191,2]
[331826290,1720773085707,-509.03,0.00014191,2]
[331826291,1720773085717,-500.0,0.00014191,2]
[331826292,1720773085726,-216.53,0.00014191,2]
[331826293,1720773085736,-500.0,0.00014191,2]
[331826294,1720773085745,-616.26,0.00014191,2]
[331826295,1720773085754,-500.0,0.00014191,2]
[331826296,1720773085763,-500.0,0.00014191,2]
[331826297,1720773085773,-500.0,0.00014191,2]
[331826298,1720773085783,-500.0,0.00014191,2]
[331826299,1720773085792,-500.0,0.00014191,2]
[331826300,1720773085801,-462.45,0.00014191,2]
[331826301,1720773085811,-500.0,0.00014191,2]
[331826302,1720773085821,-174.81,0.00014191,2]
[331826303,1720773085831,-500.0,0.00014191,2]
[331826304,1720773085840,-500.0,0.00014191,2]
[331826305,1720773085850,-500.0,0.00014191,2]
[331826306,1720773085859,-500.0,0.00014191,2]
[331826307,1720773085869,-500.0,0.00014191,2]
[331826308,1720773085878,-500.0,0.00014191,2]
[331826309,1720773085888,-500.0,0.00014191,2]
[331826310,1720773085897,-313.4,0.00014191,2]
[331826311,1720773085906,-500.0,0.00014191,2]
[331826312,1720773085915,-500.0,0.00014191,2]
[331826313,1720773085925,-500.0,0.00014191,2]
[331826314,1720773085934,-500.0,0.00014191,2]
[331826315,1720773085944,-500.0,0.00014191,2]
[331826316,1720773085954,-535.71,0.00014191,2]
[331826317,1720773085964,-500.0,0.00014191,2]
[331826318,1720773085973,-500.0,0.00014191,2]
[331826319,1720773085983,-642.92,0.00014191,2]
[331826320,1720773085993,-662.01,0.00014191,2]
[331826321,1720773086003,-565.48,0.00014191,2]
[331826322,1720773086012,-500.0,0.00014191,2]
[331826323,1720773086021,-500.0,0.00014191,2]
[331826324,1720773086030,-221.39,0.00014191,2]
[331826325,1720773086040,-500.0,0.00014191,2]
[331826326,1720773086050,-500.0,0.00014191,2]
[331826327,1720773086062,-500.0,0.00014191,2]
[331826328,1720773086073,-500.0,0.00014191,2]
[331826329,1720773086082,-500.0,0.00014191,2]
[331826330,1720773086091,-500.0,0.00014191,2]
[331826331,1720773086101,-500.0,0.00014191,2]
[331826332,1720773086110,-500.0,0.00014191,2]
[331826333,1720773086119,-565.56,0.00014191,2]
[331826334,1720773086129,-500.0,0.00014191,2]